Cogmind - Beta 13 @@@ ROGUE MODE // 2024.03.30 @ 16:44:25 Player: VLAM Result: Destroyed by Y-54 Guardian with Flak Gun Performance ------------- Evolutions (3) 1500 Regions Visited (6) 1200 Robots Destroyed (18) 90 Value Destroyed (577) 577 Prototype IDs (0) 0 Alien Tech Used (0) 0 Bonus (200) 200 TOTAL SCORE: 3567 Bonus ------- Pacifist 200 Cogmind --------- Core Integrity 0/700 Matter 205/300 Energy 98/100 System Corruption 0% Temperature Cool (18) Movement Core (50) Location -7/Lower Caves Parts ------- > --- POWER (1) -------- (None) > --- PROPULSION (3) --- (None) > --- UTILITY (7) ------ Advanced Visual Processing Unit Improved Signal Interpreter Makeshift Hacking Suite > --- WEAPON (2) ------- (None) > --- INVENTORY (5) ---- (None) Peak State ------------ > --- POWER ------------ Deuterium Engine > --- PROPULSION ------- VTOL Module > --- UTILITY ---------- Compact Battery Weight Redist. System Advanced Visual Processing Unit Improved Signal Interpreter Transmission Jammer Utility Shielding Improved Field Recycling Unit > --- WEAPON ----------- Grenade Launcher Grenade Launcher > --- INVENTORY -------- Blade Saw [Rating: 27] Favorites ----------- Power Deuterium Engine Engine Deuterium Engine Propulsion VTOL Module Flight Unit VTOL Module Utility Weight Redist. System Device Weight Redist. System Storage Compact Battery Processor Improved Signal Interpreter Hackware Makeshift Hacking Suite Protection Utility Shielding Weapon Grenade Launcher Energy Gun Heavy Riot Gun Ballistic Gun Light Assault Rifle Ballistic Cannon Assault Cannon Launcher Grenade Launcher Special Weapon Enhanced Flamer Slashing Weapon Blade Saw Build | -11 -10 -9 -8 -7 -7 -7 ------- Run | Yrd Mat Mat Mat Fac Low Low Slots Evolved 6 | . . 2 2 2 . . Power . | . . . . . . . Propulsion 1 | . . 1 . . . . Utility 5 | . . 1 2 2 . . Weapon . | . . . . . . . Parts Attached 35 | 1 . 5 12 1 11 5 Power 3 | . . 1 1 . 1 . Engine 3 | . . 1 1 . 1 . Core . | . . . . . . . Reactor . | . . . . . . . Propulsion 10 | . . 2 6 . 2 . Treads . | . . . . . . . Leg . | . . . . . . . Wheel . | . . . . . . . Hover . | . . . . . . . Flight 10 | . . 2 6 . 2 . Utility 12 | . . 2 5 1 3 1 Device 7 | . . 2 2 1 2 . Storage 1 | . . . . . 1 . Processor 2 | . . . 2 . . . Hackware 1 | . . . . . . 1 Protection 1 | . . . 1 . . . Artifact . | . . . . . . . Weapon 10 | 1 . . . . 5 4 Energy Gun 1 | . . . . . 1 . Energy Cannon . | . . . . . . . Ballistic Gun 2 | 1 . . . . . 1 Ballistic Cannon 1 | . . . . . . 1 Launcher 3 | . . . . . 3 . Special Weapon 1 | . . . . . 1 . Impact Weapon . | . . . . . . . Slashing Weapon 2 | . . . . . . 2 Piercing Weapon . | . . . . . . . Special Melee Weapon . | . . . . . . . Unidentified Prototypes . | . . . . . . . Parts Lost 29 | . . . 9 . 11 9 Power 4 | . . . 2 . 1 1 Propulsion 9 | . . . 5 . 3 1 Utility 6 | . . . 1 . 2 3 Weapon 10 | . . . 1 . 5 4 Highest Loss Streak 9 | . . . 4 . 6 9 To Critical Strikes . | . . . . . . . Average Slot Usage (%) 61 | . 14 40 72 70 66 30 Engine 6 | . . 6 7 7 6 . Flight 8 | . . 14 20 15 6 . Device 14 | . . 8 21 16 15 2 Storage 1 | . . . . . 2 . Processor 11 | . . . 4 15 15 15 Protection 5 | . . . 7 7 7 . Energy Gun 3 | . . . 5 7 3 . Ballistic Gun 2 | . 14 11 5 . . 2 Launcher 4 | . . . . . 6 . Naked Turns . | . . . . . . . Heaviest Build 18 | 1 1 7 8 7 18 15 Greatest Support 18 | 3 3 14 18 12 12 9 Greatest Overweight (x) 2 | . . . . . 1 2 Average Overweight (x) . | . . . . . . . Largest Inventory Capacity 5 | 5 5 5 5 5 5 5 Average Capacity 5 | 5 5 5 5 5 5 5 Most Carried 5 | . . . 5 5 5 4 Average Carried 3 | . . . 4 5 3 1 Final Capacity 5 | 5 5 5 5 5 5 5 Final Carried 5 | . . . 5 5 4 . Class Distribution -------------------- 70% | Mutant 13% | Scavenger-Scout 12% | Sprinter Dominant Class ---------------- Mutant | -10/Materials Sprinter | -9/Materials Sprinter | -8/Materials Scavenger-Scout | -7/Factory Mutant | -7/Lower Caves Mutant | -7/Lower Caves Resources | -11 -10 -9 -8 -7 -7 -7 ----------- Run | Yrd Mat Mat Mat Fac Low Low Matter Collected 666 | 210 . 66 108 . 282 . Remotely . | . . . . . . . Salvage Created 415 | . . 62 50 . 269 34 Parts 25 | . . 7 6 . 11 1 Haulers Intercepted 1 | . . 1 . . . . Recyclers Shooed . | . . . . . . . Parts Field Recycled . | . . . . . . . Retrieved Matter . | . . . . . . . Parts Self-Destructed 9 | . . . . . 8 1 Prevented 1 | . . . . . 1 . Kills | -11 -10 -9 -8 -7 -7 -7 ------- Run | Yrd Mat Mat Mat Fac Low Low Combat Hostiles Destroyed 16 | . . . 3 . 12 1 Guns 5 | . . . 3 . 2 . Cannons 1 | . . . . . . 1 AOE 10 | . . . . . 10 . Classes Destroyed 5 | . . 2 1 . 2 . Worker 1 | . . 1 . . . . Hauler 1 | . . 1 . . . . Swarmer 7 | . . . 3 . 4 . Grunt 8 | . . . . . 7 1 Sentry 1 | . . . . . 1 . Decomposer 1 | . . . . . 1 . Best Kill Streak 4 | . . 1 3 . 4 1 Combat Bots Only 4 | . . . 3 . 4 1 Max Kills in Single Turn 2 | . . 1 1 . 2 1 Gunslinging . | . . . . . . . Exploded 2 | . . . . . 2 . Melee . | . . . . . . . Uniques/NPCs Destroyed . | . . . . . . . Combat | -11 -10 -9 -8 -7 -7 -7 -------- Run | Yrd Mat Mat Mat Fac Low Low Hostile Shots Fired 338 | . 2 9 100 . 110 117 Missed 138 | . 1 3 50 . 42 42 Damage Taken 2494 | . 11 64 754 . 789 876 Core 1012 | . . 31 277 . 229 475 Absorbed by Shields . | . . . . . . . Redirected to Shielding 51 | . . . 23 . 23 5 Core Remaining (%) 85 | 100 100 92 49 . . . Volleys Fired 73 | . 14 19 11 . 19 10 Largest 2 | . 1 1 1 . 2 2 Hottest 140 | . 20 20 20 . 140 72 Shots Fired 94 | . 14 19 11 . 31 19 Gun 62 | . 14 19 11 . 8 10 Cannon 9 | . . . . . . 9 Launcher 21 | . . . . . 21 . Special 2 | . . . . . 2 . Kinetic 63 | . 14 19 11 . . 19 Thermal 2 | . . . . . 2 . Explosive 21 | . . . . . 21 . Electromagnetic 8 | . . . . . 8 . Robot Hit Streak 8 | . 3 8 2 . 4 6 Robot Miss Streak 6 | . 6 1 3 . 3 4 Penetration Max . | . . . . . . . Secondary Targets . | . . . . . . . Shots Hit Robots 46 | . 5 14 5 . 11 11 Core Hits 50 | . . 4 4 . 37 5 Critical Kills . | . . . . . . . Critical Parts Destroyed . | . . . . . . . Critical Strikes 1 | . . . . . . 1 Sever 1 | . . . . . . 1 Melee Attacks 1 | . . . . . . 1 Impact . | . . . . . . . Slashing 1 | . . . . . . 1 Piercing . | . . . . . . . Sneak Attacks . | . . . . . . . Combat Hostiles . | . . . . . . . Follow-up Attacks . | . . . . . . . Damage Inflicted 1518 | . 42 112 39 . 1061 264 Guns 386 | . 42 112 39 . 82 111 Cannons 139 | . . . . . . 139 Explosions 968 | . . . . . 968 . Melee 14 | . . . . . . 14 Ramming . | . . . . . . . Kinetic 443 | . 42 112 39 . . 250 Thermal 11 | . . . . . 11 . Explosive 968 | . . . . . 968 . Electromagnetic 82 | . . . . . 82 . Impact . | . . . . . . . Slashing 14 | . . . . . . 14 Piercing . | . . . . . . . Highest Corruption . | . . . . . . . Average Corruption . | . . . . . . . Corruption Purged . | . . . . . . . Corruption Blocked . | . . . . . . . Overload Shots . | . . . . . . . Overflow Damage 11 | . . . . . 11 . Projectiles . | . . . . . . . Explosions 11 | . . . . . 11 . Melee . | . . . . . . . Knockbacks 1 | . . . . . . 1 Impact . | . . . . . . . Kinetic 1 | . . . . . . 1 Secondary . | . . . . . . . Self-Inflicted Damage 36 | . . . . . 36 . Shots 2 | . . . . . 2 . Rammed . | . . . . . . . Targets Rammed . | . . . . . . . Kicked . | . . . . . . . Crushed . | . . . . . . . Highest Temperature 80 | . . . 9 . 80 70 Average Temperature 25 | . . . 4 . 24 29 Received Heat Transfer 915 | . 6 36 261 . 189 423 Siege Activations . | . . . . . . . Robots Corrupted . | . . . . . . . Combat Hostiles . | . . . . . . . Parts Fried 2 | . . . . . 2 . Impact Corruptions . | . . . . . . . Robots Melted . | . . . . . . . Combat Hostiles . | . . . . . . . Parts Melted . | . . . . . . . Heat Transferred 80 | . . . . . 80 . Parts Sabotaged . | . . . . . . . Parts Stolen . | . . . . . . . Parts Stripped . | . . . . . . . Power Chain Reactions . | . . . . . . . Alert | -11 -10 -9 -8 -7 -7 -7 ------- Run | Yrd Mat Mat Mat Fac Low Low Peak Influence 384 | . 15 87 384 224 . . Initial 174 | . . 5 36 174 . . Average 103 | . 10 18 156 177 . . Maximum Alert Level 1 | . . . 1 1 . . Low Security (%) 91 | 100 100 100 79 96 . . Level 1 8 | . . . 20 3 . . Level 2 . | . . . . . . . Level 3 . | . . . . . . . Level 4 . | . . . . . . . Level 5 . | . . . . . . . High Security . | . . . . . . . Max Security . | . . . . . . . Squads Dispatched 10 | . . 3 7 . . . Investigation 4 | . . 1 3 . . . Extermination . | . . . . . . . Reinforcement 6 | . . 2 4 . . . Assault . | . . . . . . . Garrison . | . . . . . . . Intercept . | . . . . . . . Searches Triggered . | . . . . . . . Construction Impeded . | . . . . . . . Haulers Reinforced . | . . . . . . . Active Scanning Responses . | . . . . . . . Cargo Convoy Interrupts . | . . . . . . . Stealth | -11 -10 -9 -8 -7 -7 -7 --------- Run | Yrd Mat Mat Mat Fac Low Low Distress Signals 5 | . . 1 4 . . . Communications Jammed . | . . . . . . . Distress Signals . | . . . . . . . Times Spotted 70 | . 4 9 38 1 14 4 Peak Tracking Total 21 | . 3 6 21 1 4 3 Tactical Retreats 8 | . . 1 5 1 1 . Traps | -11 -10 -9 -8 -7 -7 -7 ------- Run | Yrd Mat Mat Mat Fac Low Low Traps Triggered . | . . . . . . . Indirectly . | . . . . . . . Trap Hack Attempts . | . . . . . . . Triggered . | . . . . . . . Disarmed . | . . . . . . . Reprogrammed 4 | . . 4 . . . . Reused 1 | . . 1 . . . . Traps Extracted . | . . . . . . . Installed . | . . . . . . . Triggered 1 | . . 1 . . . . Machines | -11 -10 -9 -8 -7 -7 -7 ---------- Run | Yrd Mat Mat Mat Fac Low Low Machines Disabled . | . . . . . . . Max in Single Turn . | . . . . . . . Machines Repaired . | . . . . . . . Machines Dismantled . | . . . . . . . Machines Sabotaged . | . . . . . . . Overloaded Fab Kills . | . . . . . . . Hacking | -11 -10 -9 -8 -7 -7 -7 --------- Run | Yrd Mat Mat Mat Fac Low Low Machines Accessed 5 | . . 2 1 1 1 . Terminals 4 | . . 2 . 1 1 . Fabricators . | . . . . . . . Repair Stations 1 | . . . 1 . . . Recycling Units . | . . . . . . . Scanalyzers . | . . . . . . . Garrison Access . | . . . . . . . Total Hacks 11 | . . 3 6 1 1 . Successful 6 | . . 2 2 1 1 . Failed 5 | . . 1 4 . . . Catastrophic 1 | . . 1 . . . . Database Lockouts . | . . . . . . . Manual . | . . . . . . . Terminals 5 | . . 3 . 1 1 . Fabricators . | . . . . . . . Repair Stations 6 | . . . 6 . . . Recycling Units . | . . . . . . . Scanalyzers . | . . . . . . . Garrison Access . | . . . . . . . Terminal Hacks 4 | . . 2 . 1 1 . Record 2 | . . 1 . . 1 . Reprogram Traps 1 | . . 1 . . . . Zone Layout 1 | . . . . 1 . . Fabricator Hacks . | . . . . . . . Repair Station Hacks 2 | . . . 2 . . . Scan Component 1 | . . . 1 . . . Refit 1 | . . . 1 . . . Recycling Unit Hacks . | . . . . . . . Scanalyzer . | . . . . . . . Garrison Access Hacks . | . . . . . . . Unauthorized Hacks . | . . . . . . . Terminals . | . . . . . . . Fabricators . | . . . . . . . Repair Stations . | . . . . . . . Recycling Units . | . . . . . . . Scanalyzers . | . . . . . . . Garrison Access . | . . . . . . . Data Cores Recovered . | . . . . . . . Used . | . . . . . . . Hacking Detections 3 | . . 2 1 . . . Full Trace Events 1 | . . . 1 . . . Feedback Events . | . . . . . . . Feedback Blocked . | . . . . . . . Robot Schematics Acquired . | . . . . . . . Robots Built . | . . . . . . . Authchips . | . . . . . . . Time . | . . . . . . . Total Robot Build Rating . | . . . . . . . Part Schematics Acquired . | . . . . . . . Parts Built . | . . . . . . . Authchips . | . . . . . . . Time . | . . . . . . . Total Part Build Rating . | . . . . . . . Parts Repaired . | . . . . . . . Time . | . . . . . . . Parts Recycled . | . . . . . . . Recycled Matter . | . . . . . . . Retrieved Matter . | . . . . . . . Retrieved Components . | . . . . . . . Parts Scanalyzed . | . . . . . . . Part Schematics Acquired . | . . . . . . . Parts Damaged . | . . . . . . . Bothacking | -11 -10 -9 -8 -7 -7 -7 ------------ Run | Yrd Mat Mat Mat Fac Low Low Used RIF Installer . | . . . . . . . Robots Hacked . | . . . . . . . Non-combat . | . . . . . . . Combat . | . . . . . . . Robot Hacks Applied . | . . . . . . . Relay Couplers Released . | . . . . . . . Fabnet Peak Effective % . | . . . . . . . Robots Rewired . | . . . . . . . Allies Hacked . | . . . . . . . Hacks Repelled . | . . . . . . . Allies | -11 -10 -9 -8 -7 -7 -7 -------- Run | Yrd Mat Mat Mat Fac Low Low Total Allies . | . . . . . . . Largest Group . | . . . . . . . Highest-Rated Group . | . . . . . . . Highest-Rated Ally . | . . . . . . . Total Orders . | . . . . . . . Ally Attacks . | . . . . . . . Total Damage . | . . . . . . . Kills . | . . . . . . . Allies Corrupted . | . . . . . . . Allies Melted . | . . . . . . . Intel | -11 -10 -9 -8 -7 -7 -7 ------- Run | Yrd Mat Mat Mat Fac Low Low Robot Analysis Total . | . . . . . . . Derelict Logs Recovered 1 | . . . . . 1 . Drone Launches . | . . . . . . . Drone Recoveries . | . . . . . . . Exploration | -11 -10 -9 -8 -7 -7 -7 ------------- Run | Yrd Mat Mat Mat Fac Low Low Turns Passed 1700 | 13 110 101 224 109 1064 79 Spaces Moved 2292 | 23 169 164 429 312 1116 79 Core 1221 | 23 169 35 . . 915 79 Treads . | . . . . . . . Legs . | . . . . . . . Wheels . | . . . . . . . Hover . | . . . . . . . Flight 1071 | . . 129 429 312 201 . Fastest Speed 29 | 50 50 32 29 32 32 50 Average Speed 61 | 50 50 35 33 32 87 53 Slowest Speed 150 | 50 50 50 40 32 100 150 Overloaded Moves . | . . . . . . . Propulsion Burnouts . | . . . . . . . Robots Hopped 7 | . . . 2 5 . . Cave-ins Triggered . | . . . . . . . Exploration Rate (%) 33 | 3 37 28 50 12 92 11 Regions Visited 6 Branch Regions 2 Pre-discovered Areas . | . . . . . . . Known Exits Taken 2 | . . . . 1 1 . Unknown Exits Taken 4 | 1 1 1 1 . . . Scrap Searched 8 | . . . . . 8 . Spaces Dug . | . . . . . . . Terrain Destroyed 43 | . . . . . 43 . Melee . | . . . . . . . Projectile . | . . . . . . . AOE 43 | . . . . . 43 . Terrain Rammed . | . . . . . . . Walls Destroyed . | . . . . . . . Machines Disabled . | . . . . . . . Actions | -11 -10 -9 -8 -7 -7 -7 --------- Run | Yrd Mat Mat Mat Fac Low Low Total 2464 | 23 182 187 494 314 1168 96 Wait 57 | . . . 36 7 14 . Move 2273 | 22 168 163 424 302 1115 79 Hop 6 | . . . 2 4 . . Pick Up 11 | . . . 6 . 5 . Fast Attach 23 | 1 . 5 11 1 5 . Attach 11 | . . . . . 6 5 Detach 2 | . . . . . 1 1 Swap 1 | . . . 1 . . . Drop 5 | . . . 3 . 2 . Fire 73 | . 14 19 11 . 19 10 Melee 1 | . . . . . . 1 Ram . | . . . . . . . Kick . | . . . . . . . Crush . | . . . . . . . Escape Stasis . | . . . . . . . Rewire 1 | . . . . . 1 . Trap . | . . . . . . . Miscellaneous . | . . . . . . . Route ------- -11/Scrapyard -10/Materials -9/Materials -8/Materials -7/Factory -7/Lower Caves -7/Lower Caves History --------- Turn | Location | Event 6 | -11/Scrapyard | Discovered new exit (range 15) 14 | -11/Scrapyard | Entered Materials 116 | -10/Materials | Discovered new exit (range 15) 124 | -10/Materials | Entered another Materials area 124 | -9/Materials | Evolved 2 slots: Propulsion x1, Utility x1 220 | -9/Materials | Discovered new exit (range 15) 225 | -9/Materials | Entered another Materials area 225 | -8/Materials | Evolved 2 slots: Utility x2 329 | -8/Materials | Lost 3 parts (1p2n) 360 | -8/Materials | Met 7R-MNS 400 | -8/Materials | Lost 4 parts (2n1u1w) 436 | -8/Materials | Core integrity fell below 50% 439 | -8/Materials | Discovered new exit (range 15) 449 | -8/Materials | Entered Factory 449 | -7/Factory | Evolved 2 slots: Utility x2 554 | -7/Factory | Discovered new exit (range 10) 557 | -7/Factory | Identified exit to Lower Caves 558 | -7/Factory | Entered Lower Caves 626 | -7/Lower Caves | Attracted the attention of an 0b10 checkpoint 685 | -7/Lower Caves | Lost 6 parts (1p2n1u2w) 725 | -7/Lower Caves | Encountered a Warlord checkpoint 943 | -7/Lower Caves | Build established: Mutant 1170 | -7/Lower Caves | Lost 5 parts (1n1u3w) 1584 | -7/Lower Caves | Discovered new exit (range 9) 1621 | -7/Lower Caves | Identified exit to Lower Caves 1622 | -7/Lower Caves | Entered another Lower Caves area 1649 | -7/Lower Caves | Attracted the attention of an 0b10 checkpoint 1659 | -7/Lower Caves | Core integrity fell below 50% 1693 | -7/Lower Caves | Lost 9 parts (1p1n3u4w) 1696 | -7/Lower Caves | Core integrity fell below 20% 1701 | -7/Lower Caves | Destroyed by Y-54 Guardian with Flak Gun Last Messages --------------- Acquired Assault Cannon. EXIT=IDENTIFIED: LOWER CAVES LOCATION=LOWER CAVES GOAL=ESCAPE Hvy. Riot Gun destroyed. Critical hit (Burn: +37). VTOL Module destroyed. Utility Shielding destroyed. Weight Redist. System destroyed. G-47 Trooper destroyed. Deuterium Engine destroyed. Transmission Jammer destroyed. Aluminum Leg fries itself beyond repair. Y-54 Guardian: "INTERCEPTING UNREGISTERED DERELICT." G-50 Soldier knocked back. Barrage Gun destroyed. Assault Cannon destroyed. G-47 Trooper Aluminum Leg severed. Blade Saw destroyed. Map ----- +----------------------------------------------------+ | ?????????????????????????? #???????????????????? | | ?????????????????????????? ????????????????????? | | ?????????????????????????? ????????????????????? | | ?????????????????????????? #????????????????????? | | ?????????????????????????? ?????????????????????? | | ????????????????????????## ?????????????????????? | | ???????????????????????## #?????????????????????? | | ??????????????????????## #?????????????????????? | | ??????????????????????# #??###????????????????? | | ??????????????????????# %!#?# #####????????????? | | ??????????????????????# #? #????????????? | | ??????????????????????# ## ## #????????????? | | ??????????????????????# # ## ############?? | | ??????????##?#####????# ## ### #?? | | ??????????# ## ###### % #?# ???? | | ?????????## * #??# ??????? | | ????????## ## ###?## % #????????? | | ????????# ## #???# #?????????? | | ????????## ### g### ##### % #?????????? | | ?????????????# #### #?# % #?????????? | | ?????????????# #### ######## ##?????????? | | ?????????????## ##??####= ##??????????? | | ??????????????# #?????# #???????????? | | ??????????????# ## ##?????# #???????????? | | ??????????????# #### Y ## # #??????????? | | ??????????????# ##?# @ #??????????? | | ?????????????## #### #??????????? | | ?????????????# #?## ??????? | | ?????????????## #?## ## ?????? | | ??????????????### #?# #?### ?????? | | ?????????????????# #?# #???## ??????? | | ??????????????????# ##?# #????## ## ??????? | | ???????????????????##?? ?????# #?# ??????? | | ???????????????????????% ????? #? # ??????? | | ???????????????????????% %%#???? #? # ??????? | | ??????????????????????? =##??? ? ? # ?????? | | ?????????????????????? % #???? ?? #? ?????? | | ??????????????????????# ##???? ???###?# ?????? | | ??????????????????????###????? ????????#?????? | | ?????????????????????????????? ??????????????? | | ??????????????????????????????####???????????????? | | ?????????????????????????????????????????????????? | | ?????????????????????????????????????????????????? | | ?????????????????????????????????????????????????? | | ?????????????????????????????????????????????????? | | ?????????????????????????????????????????????????? | | ?????????????????????????????????????????????????? | | ?????????????????????????????????????????????????? | | ?????????????????????????????????????????????????? | | ?????????????????????????????????????????????????? | +----------------------------------------------------+ Best States ------------- Heat Dissipation 34 Coolant Potential 50 Energy Generation 14 Energy Capacity 475 Matter Stores 300 Matter Capacity 300 Sight Range 20 Robot Scan Range 15 Terrain Scan Density 10 Jamming Range 12 Additional Mass Support 6 Utility Shielding 33 Evasion (%) 71 Offensive Hacking 11 Item Schematics ----------------- None Robot Schematics ------------------ None Fabricated ------------ Nothing Alien Tech Used ----------------- None Achievements -------------- Hunted I Spy Challenges ------------ None Game ------ Seed StormSupersonicTendrils Manual? 0 Play Time 00:35:25 Cumulative 10.4 hours Start 2024.03.29 @ 22:40:25 End 2024.03.30 @ 16:44:25 Sessions 5 Manual Loads 0 Difficulty Rogue Special Mode None Game No. 15 Rogue 15 Adventurer 0 Explorer 0 Win Type - Total 0 Types 0/0/0/0/0/0/0/0/0 Lore% 2 Gallery% 16 Achievement% 13 Wizard Run 0 Options --------- Layout 1 ASCII 0 Keyboard 1 Movement Numpad Keybinds 0 Fullscreen 2 Font 24/Smallcaps Map View 50x35 Zoom Use 0% Tactical HUD 0 Map Filters NONE Filters NONE Steam 1 RUN: a6254ba3-6209-4a6b-9412-f4fd7a290273